bitfinex/quotes_SOLUSD_20230101
["timestamp","ask_amount","ask_price","bid_price","bid_amount"]
[1672584651206,76.14,9.8602,9.8466,76.25]
[1672584651412,40.0,9.8601,9.8468,40.0]
[1672584651641,40.0,9.8599,9.847,40.0]
[1672584651843,40.0,9.8599,9.8472,40.0]
[1672584652069,22.515,9.8598,9.8473,96.24]
[1672584652273,40.0,9.8597,9.8474,40.0]
[1672584652488,40.0,9.8597,9.8476,40.0]
[1672584652697,40.0,9.8595,9.8478,40.0]
[1672584652891,40.0,9.8593,9.8479,76.24]
[1672584653104,40.0,9.8593,9.848,40.0]
[1672584653422,40.0,9.8593,9.8482,40.0]
[1672584653632,40.0,9.8593,9.8484,40.0]
[1672584653852,40.0,9.8593,9.8485,76.23]
[1672584654064,40.0,9.8593,9.8486,40.0]
[1672584654274,40.0,9.8593,9.8488,40.0]
[1672584654484,40.0,9.8593,9.849,40.0]
[1672584654695,40.0,9.8593,9.8491,76.23]
[1672584654890,40.0,9.8593,9.8492,40.0]
[1672584655102,40.0,9.8593,9.8494,40.0]
[1672584655539,40.0,9.8593,9.8496,40.0]
[1672584656145,76.15,9.8592,9.8495,140.2414]
[1672584656379,76.15,9.8592,9.8496,140.2414]
[1672584656380,40.0,9.8591,9.8496,140.2414]
[1672584656576,40.0,9.8589,9.8497,140.2414]
[1672584656784,40.0,9.8587,9.8498,116.7862]
[1672584657000,76.15,9.8586,9.8498,116.7862]
[1672584657317,40.0,9.8585,9.8498,116.7862]
[1672584657538,40.0,9.8583,9.8498,116.7862]
[1672584657731,40.0,9.8581,9.8498,116.7862]
[1672584660275,40.0,9.8579,9.8498,116.7862]
[1672584661619,40.0,9.8581,9.8499,40.0]
[1672584661831,40.0,9.8581,9.85,76.22]
[1672584662475,40.0,9.8581,9.8499,76.22]
[1672584663951,40.0,9.8581,9.85,40.0]
[1672584664163,40.0,9.8581,9.8502,40.0]
[1672584664368,40.0,9.8581,9.8503,76.22]
[1672584665195,40.0,9.8581,9.8502,40.0]
[1672584665412,40.0,9.8581,9.8503,76.22]
[1672584666802,40.0,9.8589,9.8502,40.0]
[1672584667108,65.44136739,9.8614,9.8504,40.0]
[1672584667321,24.4403,9.8594,9.8506,40.0]
[1672584667535,24.4403,9.8594,9.8508,40.0]
[1672584667724,64.4403,9.8593,9.8509,76.21]
[1672584667943,64.4403,9.8593,9.851,40.0]
[1672584668273,64.4403,9.8593,9.8512,40.0]
[1672584668487,64.4403,9.8593,9.8514,40.0]
[1672584668690,64.4403,9.8593,9.8515,76.21]
[1672584669432,64.4403,9.8593,9.8514,40.0]
[1672584669623,64.4403,9.8593,9.8515,76.21]
[1672584669833,64.4403,9.8593,9.8352,245.97887108]
[1672584669834,64.4403,9.8593,9.8507,100.5377]
[1672584670150,64.4403,9.8593,9.8508,40.0]
[1672584670369,64.4403,9.8593,9.851,40.0]
[1672584670581,64.4403,9.8593,9.8512,40.0]
[1672584670793,64.4403,9.8593,9.8513,76.21]
[1672584670991,64.4403,9.8593,9.8514,40.0]
[1672584671192,64.4403,9.8593,9.8515,76.21]
[1672584671539,64.4403,9.8593,9.8516,40.0]
[1672584671741,64.4403,9.8593,9.8518,40.0]
[1672584671945,24.4403,9.8593,9.8519,76.21]
[1672584672270,24.4403,9.8593,9.852,40.0]
[1672584672480,24.4403,9.8593,9.8522,40.0]
[1672584672791,24.4403,9.8593,9.8524,40.0]
[1672584672998,24.4403,9.8593,9.8525,76.2]
[1672584673404,24.4403,9.8593,9.8526,40.0]
[1672584673614,24.4403,9.8593,9.8527,76.2]
[1672584673828,24.4403,9.8593,9.8528,40.0]
[1672584674039,24.4403,9.8593,9.853,40.0]
[1672584674259,24.4403,9.8593,9.8531,76.2]
[1672584674456,24.4403,9.8593,9.8532,40.0]
[1672584674671,24.4403,9.8593,9.8534,40.0]
[1672584674893,24.4403,9.8593,9.8535,76.19]
[1672584675091,24.4403,9.8593,9.8536,40.0]
[1672584675312,24.4403,9.8593,9.8538,40.0]
[1672584675520,24.4403,9.8593,9.8539,76.19]
[1672584676454,24.4403,9.8593,9.8532,40.0]
[1672584676455,24.4403,9.8593,9.854,40.0]
[1672584677092,24.4403,9.8593,9.8532,40.0]
[1672584677093,40.0,9.8592,9.8537,76.19]
[1672584677302,40.0,9.8592,9.8407,0.0018327]
[1672584677303,63.8271,9.8592,9.8508,214.1022]
[1672584677515,23.8271,9.8591,9.8508,190.8183]
[1672584677721,40.0,9.859,9.8508,190.8183]
[1672584677937,23.8271,9.8591,9.8509,40.0]
[1672584678130,23.8271,9.859,9.8511,40.0]
[1672584678342,23.8271,9.859,9.8512,76.21]
[1672584678691,23.8271,9.859,9.8513,40.0]
[1672584678869,23.8271,9.859,9.8515,40.0]
[1672584679078,23.8271,9.859,9.8516,76.21]
[1672584679298,23.8271,9.859,9.8517,40.0]
[1672584679494,23.8271,9.859,9.8511,40.0]
[1672584679495,23.8271,9.859,9.8518,76.21]
[1672584679832,40.0,9.8589,9.8511,76.21]
[1672584680042,40.0,9.8589,9.8512,40.0]
[1672584680237,40.0,9.8589,9.8514,40.0]
[1672584680445,40.0,9.8589,9.8516,40.0]
[1672584680670,23.8271,9.859,9.8516,40.0]
[1672584680671,23.8271,9.859,9.8517,76.21]
[1672584680871,23.8271,9.859,9.8518,40.0]
[1672584681078,23.8271,9.859,9.8519,76.21]
[1672584681287,23.8271,9.859,9.852,40.0]
[1672584681507,23.8271,9.859,9.8522,40.0]
[1672584681709,40.0,9.8589,9.8523,76.2]
[1672584681919,40.0,9.8589,9.8512,40.0]
[1672584682130,22.6659,9.8589,9.8513,76.21]
[1672584682347,22.6659,9.8589,9.8514,40.0]
[1672584682555,22.6659,9.8589,9.8515,76.21]
[1672584682977,22.6659,9.8589,9.8514,40.0]
[1672584683202,22.6659,9.8589,9.8515,76.21]
[1672584683413,22.6659,9.8589,9.8516,40.0]
[1672584683599,22.6659,9.8589,9.8518,40.0]
[1672584683811,22.6659,9.8589,9.8519,76.21]
[1672584684128,22.6659,9.8589,9.852,40.0]
[1672584684351,22.6659,9.8589,9.8522,40.0]
[1672584684352,22.1659,9.8589,9.8522,40.0]
[1672584684540,22.1659,9.8589,9.8524,40.0]
[1672584684875,76.08,9.8682,9.8526,303.0]
[1672584685087,40.0,9.8681,9.8528,303.0]
[1672584685282,40.0,9.8681,9.8531,40.0]
[1672584685494,40.0,9.8681,9.8533,303.0]
[1672584685705,40.0,9.8681,9.8535,343.0]
[1672584685911,40.0,9.8681,9.8538,40.0]
[1672584686125,40.0,9.8681,9.854,303.0]
[1672584686448,40.0,9.8681,9.8542,40.0]
[1672584686649,40.0,9.8681,9.8543,96.19]
[1672584687281,40.0,9.8679,9.8545,40.0]
[1672584687600,40.0,9.8677,9.853,72.21637036]
[1672584687797,96.08,9.8676,9.8531,76.2]
[1672584688019,40.0,9.8675,9.8491,40.0]
[1672584688216,40.0,9.8673,9.8492,76.23]
[1672584688550,40.0,9.8671,9.8493,40.0]
[1672584688765,40.0,9.8669,9.8495,40.0]
[1672584688957,906.17123614,9.8668,9.8496,76.22]
[1672584689168,848.53975665,9.8667,9.8497,343.0]
[1672584689377,848.53975665,9.8667,9.85,40.0]
[1672584689378,40.0,9.8665,9.85,40.0]
[1672584689602,905.18098015,9.8664,9.8501,76.22]
[1672584689810,897.38014301,9.8663,9.8502,40.0]
[1672584690133,897.38014301,9.8663,9.8504,40.0]
[1672584690134,40.0,9.8661,9.8504,40.0]
[1672584690341,40.0,9.8659,9.8505,76.22]
[1672584690660,40.0,9.8657,9.8506,40.0]
[1672584690871,953.77410838,9.8656,9.8507,76.22]
[1672584691059,908.55594583,9.8655,9.8506,76.22]
[1672584691270,964.33809132,9.8654,9.8506,76.22]
[1672584691495,905.67793991,9.8653,9.8506,76.22]
[1672584691704,40.0,9.8651,9.8506,76.22]
[1672584691905,952.22463057,9.865,9.8506,76.22]
[1672584692124,894.69665832,9.8649,9.8506,76.22]
[1672584692328,40.0,9.8647,9.8506,76.22]
[1672584692547,40.0,9.8645,9.8506,76.22]
[1672584692734,1000.33447009,9.8644,9.8506,76.22]
[1672584692952,40.0,9.8642,9.8507,40.0]
[1672584693172,899.96515866,9.8641,9.8509,303.0]
[1672584693387,873.13640836,9.864,9.851,116.21]
[1672584693598,1032.77230836,9.864,9.851,76.21]
[1672584693910,40.0,9.8638,9.8506,76.22]
[1672584694100,40.0,9.8636,9.8506,76.22]
[1672584694309,20.0,9.8635,9.8507,40.0]
[1672584694522,829.45952816,9.8636,9.8509,303.0]
[1672584694733,76.07,9.8701,9.8512,40.0]
[1672584694734,110.7791,9.8634,9.8512,40.0]
[1672584694959,40.0,9.8699,9.8515,40.0]
[1672584695152,40.0,9.8699,9.8518,40.0]
[1672584695153,40.0,9.8697,9.8518,40.0]
[1672584695360,40.0,9.8695,9.852,303.0]
[1672584695574,76.07,9.8698,9.8522,343.0]
[1672584695790,45.825,9.8694,9.8525,40.0]
[1672584696004,45.825,9.8694,9.8527,303.0]
[1672584696216,40.0,9.8692,9.8529,343.0]
[1672584696540,40.0,9.8692,9.8532,40.0]
[1672584696736,40.0,9.869,9.8534,343.0]
[1672584696947,40.0,9.869,9.8535,96.19]
[1672584697268,40.0,9.869,9.8536,40.0]
[1672584697588,40.0,9.8688,9.8538,40.0]
[1672584697789,40.0,9.8686,9.8539,96.19]
[1672584698200,40.0,9.8684,9.854,318.57937328]
[1672584698405,40.0,9.8682,9.8542,40.0]
[1672584698632,76.08,9.8681,9.8543,96.19]
[1672584698848,23.1877,9.8681,9.8544,40.0]
[1672584699051,23.1877,9.8681,9.8546,40.0]
[1672584699265,23.1877,9.8681,9.8548,40.0]
[1672584699470,40.0,9.8679,9.8549,96.18]
[1672584699682,40.0,9.8679,9.855,40.0]
[1672584699896,40.0,9.8679,9.8552,40.0]
[1672584700102,23.1877,9.8678,9.8554,303.0]
[1672584700421,23.1877,9.8678,9.8553,96.18]
[1672584700422,23.1877,9.8678,9.8557,40.0]
[1672584700629,23.1877,9.8677,9.8559,303.0]
[1672584700848,40.0,9.8676,9.856,136.17]
[1672584701463,23.1877,9.8675,9.8562,40.0]
[1672584701677,23.1877,9.8675,9.8564,40.0]
[1672584701887,23.1877,9.8675,9.8566,40.0]
[1672584702097,40.0,9.8676,9.8567,96.17]
[1672584702098,40.0,9.8673,9.8567,96.17]
[1672584702313,40.0,9.8673,9.8568,40.0]
[1672584702514,40.0,9.8673,9.8569,116.17]
[1672584702722,40.0,9.8673,9.8571,40.0]
[1672584702938,40.0,9.8673,9.8572,96.17]
[1672584703157,23.1548,9.8674,9.8573,40.0]
[1672584703476,23.1548,9.8673,9.8575,40.0]
[1672584703684,23.1548,9.8673,9.8577,40.0]
[1672584703877,23.1548,9.8673,9.8578,76.16]
[1672584704088,23.1548,9.8673,9.8579,40.0]
[1672584704423,23.1548,9.8673,9.8581,40.0]
[1672584704632,23.1548,9.8673,9.8583,40.0]
[1672584704844,23.1548,9.8673,9.8585,40.0]
[1672584705036,23.1548,9.8673,9.8586,76.15]
[1672584705245,40.0,9.8672,9.8582,40.0]
[1672584705455,40.0,9.8672,9.8583,76.16]
[1672584705456,64.5732,9.8672,9.8583,76.16]
[1672584705667,24.5732,9.8672,9.8584,40.0]
[1672584705889,40.0,9.8671,9.8585,76.16]
[1672584706092,40.0,9.8671,9.8583,76.16]
[1672584706424,40.0,9.8671,9.8582,40.0]
[1672584706622,24.5732,9.8672,9.8583,76.16]
[1672584706833,24.5732,9.8672,9.8584,40.0]
[1672584707042,24.5732,9.8672,9.8585,76.16]
[1672584707254,40.0,9.8693,9.8585,76.16]
[1672584707255,40.0,9.867,9.8585,76.16]
[1672584707462,40.0,9.867,9.8587,40.0]
[1672584707672,40.0,9.867,9.8589,40.0]
[1672584707883,40.0,9.867,9.859,76.15]
[1672584708091,64.5732,9.867,9.8588,76.15]
[1672584708303,64.5732,9.867,9.8587,76.15]
[1672584708925,64.5732,9.867,9.8586,135.8323]
[1672584710307,40.0,9.8668,9.8586,23.9098]
[1672584710505,40.0,9.8666,9.8586,23.9098]
[1672584710709,847.14088908,9.8665,9.8586,23.9098]
[1672584710915,60.0,9.8664,9.8586,23.9098]
[1672584711141,40.0,9.8662,9.8586,23.9098]
[1672584711357,40.0,9.866,9.8586,23.9098]
[1672584711553,96.1,9.8659,9.8586,23.9098]
[1672584711764,40.0,9.8658,9.8586,23.9098]
[1672584712199,20.0,9.8657,9.8586,23.9098]
[1672584712403,116.1,9.8656,9.8586,23.9098]
[1672584712815,20.0,9.8655,9.8586,23.9098]
[1672584713028,116.1,9.8654,9.8586,23.9098]
[1672584713346,40.0,9.866,9.8586,23.9098]
[1672584713347,76.07,9.8691,9.8587,40.0]
[1672584713547,40.0,9.8691,9.8589,40.0]
[1672584713757,40.0,9.8691,9.8591,40.0]
[1672584713963,40.0,9.87,9.8592,76.15]
[1672584714202,24.4594,9.871,9.8593,40.0]
[1672584714517,24.4594,9.871,9.8595,40.0]
[1672584714823,24.4594,9.8709,9.8596,76.15]
[1672584715140,24.4594,9.8709,9.8597,40.0]
[1672584715350,24.4594,9.8709,9.8599,40.0]
[1672584715667,24.4594,9.8709,9.8601,40.0]
[1672584715984,24.4594,9.8709,9.8603,40.0]
[1672584716177,40.0,9.8669,9.8604,76.14]
[1672584716380,24.678,9.8678,9.8587,233.043]
[1672584717242,24.678,9.8677,9.8587,233.043]
[1672584717959,40.0,9.8669,9.8587,193.043]
[1672584718170,40.0,9.8669,9.8587,116.893]
[1672584718704,116.09,9.8669,9.8587,116.893]
[1672584718916,40.0,9.8669,9.8587,116.893]
[1672584719144,40.0,9.8667,9.8587,116.893]
[1672584719656,76.09,9.8668,9.8587,116.893]
[1672584719868,40.0,9.8674,9.8588,40.0]
[1672584720296,40.0,9.8669,9.8588,40.0]
[1672584720697,40.0,9.8669,9.8589,76.15]
[1672584721233,23.8229,9.8676,9.8588,76.15]
[1672584721443,24.1253,9.8675,9.8589,40.0]
[1672584721761,24.1253,9.8675,9.8591,40.0]
[1672584722072,24.1253,9.8675,9.8593,40.0]
[1672584722302,24.1253,9.8675,9.8594,76.15]
[1672584722303,40.0,9.8669,9.8594,76.15]
[1672584722595,40.0,9.8669,9.8588,76.15]
[1672584722811,40.0,9.8669,9.8587,116.893]
[1672584725523,24.9695,9.8668,9.8587,116.893]
[1672584725734,40.0,9.8667,9.8587,116.893]
[1672584728495,24.9695,9.8668,9.8587,116.893]
[1672584728496,149.67354923,9.8666,9.8587,116.893]
[1672584728696,149.67354923,9.8666,9.8588,76.15]
[1672584728907,24.9695,9.8668,9.8589,40.0]
[1672584729124,24.9695,9.8668,9.8591,40.0]
[1672584729341,40.0,9.8667,9.8592,76.15]
[1672584729554,40.0,9.8667,9.8587,116.893]
[1672584729768,35.80730786,9.8666,9.8557,76.18]
[1672584729970,35.80730786,9.8666,9.8467,40.0]
[1672584729971,40.0,9.8664,9.8481,164.9974]
[1672584730167,40.0,9.8664,9.8469,303.0]
[1672584730168,40.0,9.8662,9.8482,281.2274]
[1672584730381,96.1,9.8661,9.8484,40.0]
[1672584730712,40.0,9.866,9.8486,40.0]
[1672584730918,40.0,9.8658,9.8487,76.23]
[1672584731131,40.0,9.8658,9.8486,76.23]
[1672584731132,75.36450562,9.8649,9.8486,76.23]
[1672584731342,40.0,9.8647,9.8488,40.0]
[1672584731533,40.0,9.8645,9.849,40.0]
[1672584731744,75.36450562,9.8649,9.849,40.0]
[1672584731745,76.09,9.8676,9.8492,303.0]
[1672584731980,24.058,9.8673,9.8495,40.0]
[1672584732290,24.058,9.8673,9.8498,40.0]
[1672584732494,24.058,9.8673,9.8501,40.0]
[1672584732819,24.058,9.8672,9.8504,40.0]
[1672584733005,24.058,9.8672,9.8506,303.0]
[1672584733215,24.058,9.8671,9.8508,343.0]
[1672584733432,24.058,9.8671,9.8511,40.0]
[1672584733643,24.058,9.8671,9.8514,40.0]
[1672584733960,24.058,9.8671,9.8517,40.0]
[1672584734284,24.058,9.867,9.852,40.0]
[1672584734480,24.058,9.867,9.8522,303.0]
[1672584734808,40.0,9.8669,9.8523,136.2]
[1672584735037,40.0,9.8669,9.8523,298.6105]
[1672584735038,64.5893,9.8669,9.8523,298.6105]
[1672584735753,40.0,9.8667,9.8525,40.0]
[1672584735944,40.0,9.8667,9.8527,40.0]
[1672584736151,40.0,9.8667,9.8528,96.2]
[1672584736366,40.0,9.8667,9.8529,40.0]
[1672584736593,40.0,9.8667,9.8531,40.0]
[1672584736787,40.0,9.8667,9.8532,96.2]
[1672584736996,40.0,9.8667,9.8533,40.0]
[1672584737223,40.0,9.8667,9.8534,96.19]
[1672584737419,40.0,9.8667,9.8535,40.0]
[1672584737629,40.0,9.8667,9.8537,40.0]
[1672584737840,40.0,9.8667,9.8538,96.19]
[1672584738162,40.0,9.8667,9.8539,40.0]
[1672584738378,40.0,9.8667,9.854,96.19]
[1672584738697,40.0,9.8667,9.8541,40.0]
[1672584738904,39.5,9.8667,9.8543,40.0]
[1672584739113,39.5,9.8667,9.8545,40.0]
[1672584739323,39.5,9.8667,9.8546,96.19]
[1672584739541,39.5,9.8667,9.8547,40.0]
[1672584739853,39.5,9.8667,9.8549,40.0]
[1672584740039,39.5,9.8667,9.8551,40.0]
[1672584740253,39.5,9.8667,9.8553,40.0]
[1672584740464,39.5,9.8667,9.8549,40.0]
[1672584740465,15.80730786,9.8666,9.8554,76.18]
[1672584740678,40.0,9.8664,9.8467,40.0]
[1672584741010,40.0,9.8662,9.847,40.0]
[1672584741222,96.1,9.8661,9.8472,303.0]
[1672584741530,828.43915566,9.866,9.8475,40.0]
[1672584741726,40.0,9.8658,9.8477,303.0]
[1672584741933,40.0,9.8656,9.8479,303.0]
[1672584742261,40.0,9.8654,9.8481,40.0]
[1672584742464,850.41300114,9.8653,9.8483,40.0]
[1672584742789,793.5339269,9.8652,9.8485,40.0]
[1672584742990,40.0,9.865,9.8487,40.0]
[1672584743209,40.0,9.8648,9.8488,76.23]
[1672584743414,766.41907927,9.8647,9.8489,40.0]
[1672584743627,40.0,9.8646,9.8491,40.0]
[1672584743830,40.0,9.8644,9.8492,76.23]
[1672584744046,40.0,9.8642,9.8493,40.0]
[1672584744370,40.0,9.864,9.8495,40.0]
[1672584744583,40.0,9.8638,9.8497,40.0]
[1672584744787,20.0,9.8637,9.8498,76.22]
[1672584745005,40.0,9.8636,9.8499,40.0]
[1672584745200,40.0,9.8634,9.8501,40.0]
[1672584745416,20.0,9.8633,9.8502,76.22]
[1672584745629,40.0,9.8632,9.8503,40.0]
[1672584745947,40.0,9.863,9.8505,40.0]
[1672584746164,40.0,9.8628,9.8507,40.0]
[1672584746366,20.0,9.8627,9.8509,40.0]
[1672584746570,40.0,9.8626,9.851,76.21]
[1672584746775,40.0,9.8624,9.8511,40.0]
[1672584746978,40.0,9.8624,9.8513,40.0]
[1672584747196,40.0,9.8622,9.8514,76.21]
[1672584747413,20.0,9.8621,9.8515,40.0]
[1672584747609,20.0,9.8621,9.8517,40.0]
[1672584747820,20.0,9.8621,9.8518,76.21]
[1672584748041,40.0,9.8619,9.8519,40.0]
[1672584748259,40.0,9.8619,9.8521,40.0]
[1672584748463,40.0,9.8619,9.8523,40.0]
[1672584748676,40.0,9.8617,9.8524,76.2]
[1672584748995,40.0,9.8617,9.8525,40.0]
[1672584749201,40.0,9.8617,9.8519,40.0]
[1672584749202,40.0,9.8617,9.8526,76.2]
[1672584749401,48.594,9.8616,9.8499,40.0]
[1672584749611,40.0,9.8615,9.8501,40.0]
[1672584749820,40.0,9.8615,9.8502,76.22]
[1672584750026,40.0,9.8615,9.8503,40.0]
[1672584750344,40.0,9.8613,9.8505,40.0]
[1672584750552,40.0,9.8613,9.8506,76.22]
[1672584750760,40.0,9.8611,9.8501,40.0]
[1672584750967,40.0,9.8611,9.8502,76.22]
[1672584751187,40.0,9.8611,9.8503,40.0]
[1672584751515,40.0,9.8609,9.8505,40.0]
[1672584751727,40.0,9.8609,9.8507,40.0]
[1672584751922,40.0,9.8607,9.8509,40.0]
[1672584752127,40.0,9.8607,9.8511,40.0]
[1672584752337,40.0,9.8607,9.8512,76.21]
[1672584752553,40.0,9.8605,9.8513,40.0]
[1672584752764,40.0,9.8605,9.8515,40.0]
[1672584752964,40.0,9.8605,9.8517,40.0]
[1672584753302,22.7329,9.8604,9.8519,40.0]
[1672584753508,22.7329,9.8604,9.852,76.21]
[1672584753710,23.3633,9.8603,9.8521,40.0]
[1672584753924,23.3633,9.8603,9.8523,40.0]
[1672584754134,40.0,9.8602,9.8524,76.2]
[1672584754339,63.3633,9.8602,9.8525,40.0]
[1672584754545,23.3633,9.8602,9.8527,40.0]
[1672584754772,23.3633,9.8602,9.8529,40.0]
[1672584754979,23.3633,9.8601,9.853,76.2]
[1672584755383,23.3633,9.8601,9.8527,40.0]
[1672584755384,23.3633,9.8601,9.8528,76.2]
[1672584755602,23.3633,9.8601,9.8529,40.0]
[1672584755927,23.3633,9.8601,9.853,76.2]
[1672584756135,23.3633,9.8601,9.8531,40.0]
[1672584756455,23.3633,9.8601,9.8533,40.0]
[1672584756641,23.3633,9.8601,9.8535,40.0]
[1672584756856,23.3633,9.8601,9.8537,40.0]
[1672584757066,23.3633,9.8601,9.8539,40.0]
[1672584757277,23.3633,9.8601,9.854,76.19]
[1672584757483,23.3633,9.8601,9.8541,40.0]
[1672584757695,23.3633,9.8601,9.8543,40.0]
[1672584757918,23.3633,9.8601,9.8544,76.19]
[1672584758131,23.3633,9.8601,9.8545,40.0]
[1672584758325,23.3633,9.8601,9.8547,40.0]
[1672584758669,23.3633,9.8601,9.8548,76.18]
[1672584758860,23.3633,9.8601,9.8549,40.0]
[1672584765476,23.3633,9.8601,9.8544,76.19]
[1672584765806,23.3633,9.8601,9.8545,40.0]
[1672584767687,23.3633,9.8601,9.8547,40.0]
[1672584769276,23.3633,9.8601,9.8549,40.0]
[1672584769490,23.3633,9.8601,9.8551,40.0]
[1672584769900,23.3633,9.8601,9.8553,40.0]
[1672584773278,23.3633,9.8601,9.8552,76.18]
[1672584773474,23.3633,9.8601,9.8547,40.0]
[1672584773688,23.3633,9.8601,9.8548,76.18]
[1672584774005,23.3633,9.8601,9.8547,40.0]
[1672584774006,23.3633,9.8601,9.8546,76.19]
[1672584774219,23.3633,9.8601,9.8534,76.19]
[1672584774430,23.3633,9.8601,9.854,76.19]
[1672584774856,23.3633,9.8601,9.8545,40.0]
[1672584775049,23.3633,9.8601,9.8546,76.19]
[1672584775260,23.3633,9.8601,9.8547,40.0]
[1672584775474,23.3633,9.8601,9.8549,40.0]
[1672584777263,23.3633,9.8601,9.8548,76.18]
[1672584777472,23.3633,9.8601,9.8542,76.19]
[1672584777686,23.3633,9.8601,9.8541,40.0]
[1672584778097,23.3633,9.8601,9.8543,40.0]
[1672584778303,23.3633,9.8601,9.8545,40.0]
[1672584778524,23.3633,9.8601,9.8546,76.19]
[1672584778525,40.0,9.86,9.8546,76.19]
[1672584778749,40.0,9.86,9.8318,606.80983399]
[1672584778750,47.5515,9.86,9.8507,66.28038004]
[1672584779054,798.30694966,9.8669,9.8509,303.0]
[1672584779255,40.0,9.8668,9.8512,40.0]
[1672584779464,40.0,9.8668,9.8515,40.0]
[1672584779796,22.6966,9.867,9.8518,40.0]
[1672584779988,22.6966,9.867,9.852,303.0]
[1672584780212,22.6966,9.867,9.8522,343.0]
[1672584780419,22.6966,9.867,9.8525,40.0]
[1672584780644,22.6966,9.867,9.8528,40.0]
[1672584780857,22.6966,9.867,9.853,303.0]
[1672584781076,22.6966,9.867,9.8533,40.0]
[1672584781259,22.6966,9.867,9.8534,96.19]
[1672584781591,22.6966,9.867,9.8535,40.0]
[1672584781787,40.0,9.8668,9.8537,40.0]
[1672584782113,40.0,9.8668,9.8539,40.0]
[1672584782311,40.0,9.8668,9.8541,40.0]
[1672584782515,20.0,9.8667,9.8542,76.19]
[1672584782740,116.09,9.8666,9.854,113.4807]
[1672584782958,40.0,9.8664,9.854,113.4807]
[1672584783268,40.0,9.8662,9.8519,76.21]
[1672584783480,40.0,9.866,9.852,40.0]
[1672584783681,96.1,9.8659,9.8521,76.2]
[1672584783998,40.0,9.8658,9.8521,76.2]
[1672584784213,96.1,9.8657,9.8522,40.0]
[1672584784421,40.0,9.8656,9.8523,76.2]
[1672584784748,96.1,9.8655,9.8524,40.0]
[1672584785056,40.0,9.8654,9.8526,40.0]
[1672584785259,40.0,9.8652,9.8527,76.2]
[1672584785470,96.1,9.8651,9.8528,40.0]
[1672584785676,96.1,9.8651,9.853,40.0]
[1672584785882,20.0,9.865,9.8532,40.0]
[1672584786098,76.11,9.8649,9.8533,76.2]
[1672584786423,20.0,9.8648,9.8534,40.0]
[1672584786637,20.0,9.8648,9.8536,40.0]
[1672584786824,76.09,9.8665,9.8538,303.0]
[1672584787037,46.2183,9.8676,9.854,303.0]
[1672584787254,46.2183,9.8676,9.8543,40.0]
[1672584787461,46.2183,9.8676,9.8544,96.19]
[1672584787687,40.0,9.867,9.8544,96.19]
[1672584787885,40.0,9.867,9.8546,40.0]
[1672584788093,40.0,9.867,9.8545,156.8615]
[1672584788094,40.0,9.867,9.8547,96.18]
[1672584788314,40.0,9.8668,9.8545,76.19]
[1672584788511,76.09,9.8667,9.8526,40.0]
[1672584788721,40.0,9.8666,9.8527,76.2]
[1672584789046,40.0,9.8664,9.8528,40.0]
[1672584789244,96.1,9.8663,9.8529,76.2]
[1672584789455,40.0,9.8662,9.8531,40.0]
[1672584789680,20.0,9.8661,9.8533,40.0]
[1672584789890,183.1196,9.8661,9.8534,76.19]
[1672584790091,183.1196,9.8661,9.8535,40.0]
[1672584790295,183.1196,9.8661,9.8537,40.0]
[1672584790624,183.1196,9.8661,9.8536,76.19]
[1672584790625,40.0,9.8659,9.8538,76.19]
[1672584790823,96.1,9.8658,9.8508,40.0]
[1672584791035,40.0,9.8657,9.8509,76.21]
[1672584791245,40.0,9.8655,9.851,40.0]
[1672584791466,96.1,9.8654,9.8512,40.0]
[1672584791677,40.0,9.8653,9.8514,40.0]
[1672584791888,40.0,9.8651,9.8516,40.0]
[1672584792099,40.0,9.8649,9.8517,76.21]
[1672584792406,40.0,9.8647,9.8518,40.0]
[1672584792615,40.0,9.8645,9.852,40.0]